lending/lending_fUSD_20240723
["ID","MTS","AMOUNT","RATE_DAILY","PERIOD"]
[332944936,1721697050243,-500.0,0.00010958,2]
[332944937,1721697050255,-500.0,0.00010958,2]
[332944938,1721697050265,-500.0,0.00010958,2]
[332944939,1721697050276,-500.0,0.00010958,2]
[332944940,1721697050286,-3250.0,0.00010958,2]
[332944941,1721697050296,-2628.17,0.00010958,2]
[332944942,1721697050306,-2628.17,0.00010958,3]
[332944943,1721697050316,-2628.17,0.00010958,4]
[332944944,1721697050325,-500.0,0.00010958,2]
[332944945,1721697050334,-2628.17,0.00010958,5]
[332944946,1721697050345,-1151.92,0.00010958,2]
[332944947,1721697050354,-714.32800619,0.00010958,3]
[332944948,1721697050485,-437.59199381,0.00010958,3]
[332944949,1721697050495,-500.0,0.00010958,2]
[332944950,1721697050506,-2018.88,0.00010958,2]
[332944951,1721697050515,-78.22800617,0.00010958,3]
[332944952,1721697050527,-1940.65199383,0.00010958,3]
[332944953,1721697050536,-500.0,0.00010958,3]
[332944954,1721697050545,-2018.88,0.00010958,4]
[332944955,1721697050555,-500.0,0.00010958,4]
[332944956,1721697050565,-677.71959658,0.00010958,5]
[332944957,1721697050576,-357.69482547,0.00010958,5]
[332944958,1721697050698,-460.00978,0.00010958,5]
[332944959,1721697050715,-507.53028692,0.00010958,5]
[332944960,1721697051734,-150.0,0.00010178,2]
[332944961,1721697051744,-15.92551103,0.00010958,5]
[332944962,1721697051753,-196.75856428,0.00010958,5]
[332944963,1721697051777,-303.24143572,0.00010958,5]
[332944964,1721697051786,-214.920463,0.00010958,6]
[332944965,1721697051798,-3412.65173754,0.00010958,2]
[332944966,1721697051809,-3557.41826246,0.00010958,2]
[332944967,1721697051819,-500.0,0.00010958,2]
[332944968,1721697051828,-2376.72,0.00010958,2]
[332944969,1721697051837,-1854.16050182,0.00010958,3]
[332944970,1721697051862,-522.55949818,0.00010958,3]
[332944971,1721697051871,-100.01438179,0.00010958,2]
[332944972,1721697051883,-399.98561821,0.00010958,2]
[332944973,1721697051892,-29.36410045,0.00010958,3]
[332944982,1721697392529,165.18,8.219e-05,2]
[332944990,1721697928397,156.92,8.219e-05,2]
[332945035,1721698231810,-396.24892489,9.685e-05,2]
[332945036,1721698232140,-4887.30327199,9.685e-05,2]
[332945037,1721698232150,-485.13,9.686e-05,2]
[332945038,1721698232160,-1000.0,9.686e-05,2]
[332945039,1721698232169,-300.0,9.697e-05,2]
[332945040,1721698232183,-23890.0,9.698e-05,2]
[332945041,1721698232192,-250.0,9.753e-05,2]
[332945042,1721698232202,-500.0,9.854e-05,2]
[332945043,1721698232211,-250.0,9.864e-05,2]
[332945044,1721698232221,-404.00629009,9.962e-05,2]
[332945045,1721698232231,-155.05971943,9.962e-05,2]
[332945046,1721698232240,-165.28,9.97e-05,2]
[332945047,1721698232250,-169.68,9.977e-05,2]
[332945048,1721698232260,-5125.95,9.977e-05,2]
[332945049,1721698232269,-1627.9,9.977e-05,2]
[332945050,1721698232279,-2949.39574503,0.0001,2]
[332945051,1721698232288,-150.0,0.00010177,2]
[332945052,1721698232297,-3152.13,0.00010178,2]
[332945053,1721698232307,-499.99,0.00010178,2]
[332945054,1721698232316,-150.99,0.00010178,2]
[332945055,1721698232326,-782.57,0.00010178,2]
[332945057,1721698232335,-150.0,0.00010178,2]
[332945058,1721698232343,-150.0,0.00010178,2]
[332945060,1721698232353,-165.28,0.00010178,2]
[332945062,1721698232362,-711.24,0.00010178,2]
[332945064,1721698232371,-150.0,0.0001023,2]
[332945065,1721698232380,-302.27,0.0001023,2]
[332945067,1721698232389,-150.83,0.0001023,2]
[332945069,1721698232398,-156.92,0.00010467,2]
[332945070,1721698232408,-833.54,0.00010477,2]
[332945071,1721698232417,-1410.01,0.00010477,2]
[332945072,1721698232428,-883.68,0.00010477,2]
[332945073,1721698232438,-882.37,0.00010477,2]
[332945074,1721698232447,-424.67,0.00010477,2]
[332945075,1721698232456,-220.33,0.00010658,3]
[332945076,1721698232466,-420.0,0.00010667,2]
[332945077,1721698232475,-529.84,0.00010712,2]
[332945078,1721698232485,-529.84,0.00010712,2]
[332945079,1721698232494,-529.84,0.00010712,2]
[332945080,1721698232504,-529.84,0.00010712,2]
[332945081,1721698232513,-529.84,0.00010712,2]
[332945082,1721698232522,-17832.2280911,0.0001074,2]
[332945083,1721698232538,-29839.07542776,0.0001074,2]
[332945084,1721698232549,-286.18192272,0.0001074,2]
[332945085,1721698232560,-1996.79710505,0.0001074,2]
[332945086,1721698232652,-309908.71745337,0.0001074,2]
[332945087,1721698232661,-2500.0,0.00010748,2]
[332945088,1721698232675,-171.29269954,0.00010758,2]
[332945089,1721698232684,-45234.4411,0.00010758,2]
[332945090,1721698232694,-37980.46304271,0.00010762,2]
[332945091,1721698232703,-272.2871084,0.00010771,2]
[332945092,1721698232712,-6212.6516,0.00010772,2]
[332945093,1721698232721,-529.84,0.000108,2]
[332945094,1721698232730,-3000.0,0.0001085,2]
[332945095,1721698232739,-178.58879389,0.00010858,2]
[332945096,1721698232748,-165.06232278,0.00010858,2]
[332945097,1721698232758,-637.6864611,0.00010858,2]
[332945098,1721698232768,-500.0,0.00010858,2]
[332945099,1721698232777,-89533.807,0.00010858,2]
[332945100,1721698232786,-1000.0,0.00010858,2]
[332945101,1721698232795,-3245.5692,0.00010858,2]
[332945102,1721698232805,-2954.7151,0.00010858,2]
[332945103,1721698232814,-5000.0,0.00010858,2]
[332945104,1721698232823,-1000.0,0.00010858,2]
[332945105,1721698232832,-13076.7862,0.00010858,2]
[332945106,1721698232842,-615.5753,0.00010858,2]
[332945107,1721698232851,-317.65,0.00010858,2]
[332945108,1721698232860,-637.68646108,0.0001087,2]
[332945109,1721698232869,-637.68646108,0.00010881,2]
[332945110,1721698232878,-165.06232277,0.00010883,2]
[332945111,1721698232887,-1000.0,0.00010897,2]
[332945112,1721698232896,-529.84,0.000109,2]
[332945113,1721698232906,-529.84,0.000109,2]
[332945114,1721698232915,-529.84,0.000109,2]
[332945115,1721698232926,-529.84,0.000109,2]
[332945116,1721698232936,-529.84,0.000109,2]
[332945117,1721698232945,-154.66402116,0.000109,2]
[332945118,1721698232954,-500.0,0.00010901,2]
[332945119,1721698232963,-7108.81437022,0.00010949,2]
[332945120,1721698232972,-509.0,0.00010958,2]
[332945121,1721698232981,-500.0,0.00010958,2]
[332945122,1721698232991,-500.0,0.00010958,2]
[332945123,1721698233000,-500.0,0.00010958,2]
[332945124,1721698233009,-180.27890295,0.00010958,2]
[332945125,1721698233018,-500.0,0.00010958,2]
[332945126,1721698233027,-500.0,0.00010958,2]
[332945127,1721698233035,-500.0,0.00010958,2]
[332945128,1721698233045,-500.0,0.00010958,2]
[332945129,1721698233055,-500.0,0.00010958,2]
[332945130,1721698233065,-1049.01515788,0.00010958,2]
[332945131,1721698233074,-500.0,0.00010958,2]
[332945132,1721698233083,-372.90699992,0.00010958,2]
[332945133,1721698233092,-500.0,0.00010958,2]
[332945134,1721698233100,-500.0,0.00010958,2]
[332945135,1721698233108,-500.0,0.00010958,2]
[332945136,1721698233117,-500.0,0.00010958,2]
[332945137,1721698233125,-338.9608442,0.00010958,2]
[332945138,1721698233133,-500.0,0.00010958,2]
[332945139,1721698233141,-500.0,0.00010958,2]
[332945140,1721698233149,-500.0,0.00010958,2]
[332945141,1721698233157,-159.13968949,0.00010958,2]
[332945142,1721698233165,-500.0,0.00010958,2]
[332945143,1721698233176,-500.0,0.00010958,2]
[332945144,1721698233185,-500.0,0.00010958,2]
[332945145,1721698233193,-500.0,0.00010958,2]
[332945146,1721698233201,-151.0,0.00010958,2]
[332945147,1721698233445,-151.0,0.00010958,2]
[332945148,1721698233459,-151.0,0.00010958,2]
[332945149,1721698233468,-151.0,0.00010958,2]
[332945150,1721698233477,-151.0,0.00010958,2]
[332945151,1721698233484,-519.39097752,0.00010958,2]
[332945152,1721698233493,-500.0,0.00010958,2]
[332945153,1721698233502,-500.0,0.00010958,2]
[332945154,1721698233512,-500.0,0.00010958,2]
[332945155,1721698233521,-500.0,0.00010958,2]
[332945156,1721698233534,-500.0,0.00010958,2]
[332945157,1721698233543,-539.36251312,0.00010958,2]
[332945158,1721698233552,-500.0,0.00010958,2]
[332945159,1721698233563,-500.0,0.00010958,2]
[332945160,1721698233572,-500.0,0.00010958,2]
[332945161,1721698233582,-500.0,0.00010958,2]
[332945162,1721698233592,-336.43496028,0.00010958,2]
[332945163,1721698233601,-155.0,0.00010958,2]
[332945164,1721698233612,-500.0,0.00010958,2]
[332945165,1721698233621,-500.0,0.00010958,2]
[332945166,1721698233631,-500.0,0.00010958,2]
[332945167,1721698233640,-500.0,0.00010958,2]
[332945168,1721698233650,-500.0,0.00010958,2]
[332945169,1721698233660,-1157.17,0.00010958,2]
[332945170,1721698233670,-500.0,0.00010958,2]
[332945171,1721698233680,-242.26245792,0.00010958,2]
[332945172,1721698233689,-611.64,0.00010958,2]
[332945173,1721698233699,-500.0,0.00010958,2]
[332945174,1721698233708,-1404.36,0.00010958,2]
[332945175,1721698233718,-500.0,0.00010958,2]
[332945176,1721698233727,-2000.0,0.00010958,2]
[332945177,1721698233737,-200.0,0.00010958,2]
[332945178,1721698233746,-500.0,0.00010958,2]
[332945179,1721698233755,-800.16,0.00010958,2]
[332945180,1721698233765,-500.0,0.00010958,2]
[332945181,1721698233774,-569.41,0.00010958,2]
[332945182,1721698233783,-500.0,0.00010958,2]
[332945183,1721698233792,-500.0,0.00010958,2]
[332945184,1721698233802,-500.0,0.00010958,2]
[332945185,1721698233811,-500.0,0.00010958,3]
[332945186,1721698233820,-500.0,0.00010958,4]
[332945187,1721698233830,-658.22,0.00010958,2]
[332945188,1721698233839,-500.0,0.00010958,5]
[332945189,1721698233849,-500.0,0.00010958,6]
[332945190,1721698233858,-500.0,0.00010958,2]
[332945191,1721698233868,-500.0,0.00010958,7]
[332945192,1721698233878,-500.0,0.00010958,8]
[332945193,1721698233887,-500.0,0.00010958,9]
[332945194,1721698233896,-500.0,0.00010958,10]
[332945195,1721698233905,-500.0,0.00010958,11]
[332945196,1721698233914,-1024.83,0.00010958,2]
[332945197,1721698233924,-506.54,0.00010958,2]
[332945198,1721698233933,-500.0,0.00010958,2]
[332945199,1721698233942,-500.0,0.00010958,3]
[332945200,1721698233951,-500.0,0.00010958,4]
[332945201,1721698233960,-500.0,0.00010958,2]
[332945202,1721698233970,-500.0,0.00010958,5]
[332945203,1721698233979,-500.0,0.00010958,2]
[332945204,1721698233988,-535.78254367,0.00010958,6]
[332945205,1721698233998,-500.0,0.00010958,2]
[332945206,1721698234007,-500.0,0.00010958,3]
[332945207,1721698234016,-151.0,0.00010958,2]
[332945208,1721698234026,-500.0,0.00010958,4]
[332945209,1721698234035,-151.0,0.00010958,2]
[332945210,1721698234045,-500.0,0.00010958,5]
[332945211,1721698234054,-151.0,0.00010958,2]
[332945212,1721698234063,-500.0,0.00010958,6]
[332945213,1721698234073,-405.12327796,0.00010958,7]
[332945214,1721698234082,-151.0,0.00010958,2]
[332945215,1721698234091,-151.0,0.00010958,2]
[332945216,1721698234100,-500.0,0.00010958,2]
[332945217,1721698234109,-151.0,0.00010958,2]
[332945218,1721698234118,-500.0,0.00010958,3]
[332945219,1721698234127,-151.0,0.00010958,2]
[332945220,1721698234136,-500.0,0.00010958,4]
[332945221,1721698234146,-500.0,0.00010958,2]
[332945222,1721698234155,-151.0,0.00010958,2]
[332945223,1721698234164,-500.0,0.00010958,3]
[332945224,1721698234175,-151.0,0.00010958,2]
[332945225,1721698234185,-500.0,0.00010958,5]
[332945226,1721698234194,-500.0,0.00010958,2]
[332945227,1721698234203,-500.0,0.00010958,2]
[332945228,1721698234213,-500.0,0.00010958,4]
[332945229,1721698234222,-500.0,0.00010958,6]
[332945230,1721698234232,-204.806659,0.00010958,2]
[332945231,1721698234241,-500.0,0.00010958,5]
[332945232,1721698234251,-500.0,0.00010958,7]
[332945233,1721698234260,-1165.9,0.00010958,2]
[332945234,1721698234269,-500.0,0.00010958,6]
[332945235,1721698234279,-500.0,0.00010958,8]
[332945236,1721698234288,-666.65,0.00010958,2]
[332945237,1721698234297,-500.0,0.00010958,9]
[332945238,1721698234307,-500.0,0.00010958,7]
[332945239,1721698234317,-666.65,0.00010958,3]
[332945240,1721698234326,-500.0,0.00010958,10]
[332945241,1721698234336,-508.35120036,0.00010958,8]
[332945242,1721698234345,-500.0,0.00010958,2]
[332945243,1721698234355,-666.65,0.00010958,4]
[332945244,1721698234365,-500.0,0.00010958,11]
[332945245,1721698234374,-500.0,0.00010958,3]
[332945246,1721698234385,-666.65,0.00010958,5]
[332945247,1721698234394,-500.0,0.00010958,4]
[332945248,1721698234404,-666.65,0.00010958,6]
[332945249,1721698234414,-666.65,0.00010958,7]
[332945250,1721698234423,-666.65,0.00010958,8]
[332945251,1721698234433,-310.99958291,0.00010958,5]
[332945252,1721698234443,-666.65,0.00010958,9]
[332945253,1721698234453,-666.65,0.00010958,10]
[332945254,1721698234462,-602.95872866,0.00010958,2]
[332945255,1721698234472,-666.65,0.00010958,11]
[332945256,1721698234481,-825.3,0.00010958,2]
[332945257,1721698234491,-500.0,0.00010958,2]
[332945258,1721698234500,-500.0,0.00010958,3]
[332945259,1721698234510,-500.0,0.00010958,4]
[332945260,1721698234520,-500.0,0.00010958,2]
[332945261,1721698234530,-500.0,0.00010958,5]
[332945262,1721698234542,-500.0,0.00010958,6]
[332945263,1721698234552,-500.0,0.00010958,2]
[332945264,1721698234561,-720.83,0.00010958,2]
[332945265,1721698234571,-500.0,0.00010958,7]
[332945266,1721698234581,-720.83,0.00010958,3]
[332945267,1721698234591,-515.2943524,0.00010958,8]
[332945268,1721698234601,-720.83,0.00010958,4]
[332945269,1721698234612,-720.83,0.00010958,5]
[332945270,1721698234622,-720.83,0.00010958,6]
[332945271,1721698234632,-720.83,0.00010958,7]
[332945272,1721698234641,-720.83,0.00010958,8]
[332945273,1721698234651,-720.83,0.00010958,9]
[332945274,1721698234660,-720.83,0.00010958,10]
[332945275,1721698234671,-500.0,0.00010958,2]
[332945276,1721698234682,-500.0,0.00010958,2]
[332945277,1721698234692,-720.83,0.00010958,11]
[332945278,1721698234702,-500.0,0.00010958,3]
[332945279,1721698234712,-500.0,0.00010958,4]
[332945280,1721698234723,-500.0,0.00010958,5]
[332945281,1721698234732,-500.0,0.00010958,6]
[332945282,1721698234743,-500.0,0.00010958,7]
[332945283,1721698234752,-500.0,0.00010958,8]
[332945284,1721698234762,-612.55,0.00010958,2]
[332945285,1721698234772,-500.0,0.00010958,9]
[332945286,1721698234782,-500.0,0.00010958,10]
[332945287,1721698234791,-500.0,0.00010958,11]
[332945288,1721698234801,-1039.75,0.00010958,2]
[332945289,1721698234810,-500.0,0.00010958,2]
[332945290,1721698234820,-500.0,0.00010958,2]
[332945291,1721698234829,-957.34,0.00010958,2]
[332945292,1721698234838,-500.0,0.00010958,2]
[332945293,1721698234848,-500.0,0.00010958,3]
[332945294,1721698234857,-500.0,0.00010958,4]
[332945295,1721698234866,-500.0,0.00010958,5]
[332945296,1721698234876,-500.0,0.00010958,2]
[332945297,1721698234886,-484.25135652,0.00010958,6]
[332945298,1721698234895,-500.0,0.00010958,3]
[332945299,1721698234905,-500.0,0.00010958,4]
[332945300,1721698234915,-500.0,0.00010958,5]
[332945301,1721698234927,-500.0,0.00010958,6]
[332945302,1721698234936,-500.0,0.00010958,7]
[332945303,1721698234945,-500.0,0.00010958,2]
[332945304,1721698234955,-500.0,0.00010958,8]
[332945305,1721698234964,-500.0,0.00010958,2]
[332945306,1721698234973,-500.0,0.00010958,3]
[332945307,1721698234983,-547.93891119,0.00010958,9]
[332945308,1721698234992,-500.0,0.00010958,4]
[332945309,1721698235001,-500.0,0.00010958,5]
[332945310,1721698235010,-500.0,0.00010958,2]
[332945311,1721698235020,-500.0,0.00010958,6]
[332945312,1721698235029,-500.0,0.00010958,7]
[332945313,1721698235039,-500.0,0.00010958,8]
[332945314,1721698235049,-169.13223063,0.00010958,9]
[332945315,1721698235058,-500.0,0.00010958,2]
[332945316,1721698235068,-500.0,0.00010958,2]
[332945317,1721698235077,-500.0,0.00010958,3]
[332945318,1721698235087,-500.0,0.00010958,3]
[332945319,1721698235097,-500.0,0.00010958,2]
[332945320,1721698235106,-500.0,0.00010958,4]
[332945321,1721698235115,-500.0,0.00010958,4]
[332945322,1721698235125,-500.0,0.00010958,2]
[332945323,1721698235134,-500.0,0.00010958,2]
[332945324,1721698235143,-500.0,0.00010958,5]
[332945325,1721698235153,-500.0,0.00010958,3]
[332945326,1721698235162,-549.6502185,0.00010958,5]
[332945327,1721698235172,-500.0,0.00010958,4]
[332945328,1721698235186,-726.43,0.00010958,2]
[332945329,1721698235195,-500.0,0.00010958,5]
[332945330,1721698235205,-500.0,0.00010958,6]
[332945331,1721698235217,-500.0,0.00010958,2]
[332945332,1721698235226,-500.0,0.00010958,6]
[332945333,1721698235235,-500.0,0.00010958,7]
[332945334,1721698235245,-500.0,0.00010958,7]
[332945335,1721698235254,-500.0,0.00010958,8]
[332945336,1721698235264,-500.0,0.00010958,9]
[332945337,1721698235274,-185.88314066,0.00010958,8]
[332945338,1721698235283,-500.0,0.00010958,10]
[332945339,1721698235293,-500.0,0.00010958,2]
[332945340,1721698235302,-500.0,0.00010958,2]
[332945341,1721698235312,-500.0,0.00010958,11]
[332945342,1721698235321,-500.0,0.00010958,3]
[332945343,1721698235331,-500.0,0.00010958,4]
[332945344,1721698235340,-500.0,0.00010958,5]
[332945345,1721698235350,-722.59,0.00010958,2]
[332945346,1721698235360,-509.2156759,0.00010958,6]
[332945347,1721698235369,-500.0,0.00010958,2]
[332945348,1721698235379,-500.0,0.00010958,3]
[332945349,1721698235388,-500.0,0.00010958,2]
[332945350,1721698235398,-450.72071192,0.00010958,4]
[332945351,1721698235407,-500.0,0.00010958,2]
[332945352,1721698235416,-500.0,0.00010958,3]
[332945353,1721698235427,-500.0,0.00010958,2]
[332945354,1721698235440,-500.0,0.00010958,2]
[332945355,1721698235450,-500.0,0.00010958,4]
[332945356,1721698235459,-500.0,0.00010958,5]
[332945357,1721698235469,-500.0,0.00010958,2]
[332945358,1721698235479,-500.0,0.00010958,6]
[332945359,1721698235488,-500.0,0.00010958,2]
[332945360,1721698235498,-500.0,0.00010958,2]
[332945361,1721698235507,-500.0,0.00010958,7]
[332945362,1721698235516,-500.0,0.00010958,3]
[332945363,1721698235526,-500.0,0.00010958,8]
[332945364,1721698235538,-500.0,0.00010958,4]
[332945365,1721698235547,-500.0,0.00010958,9]
[332945366,1721698235557,-500.0,0.00010958,2]
[332945367,1721698235567,-500.0,0.00010958,10]
[332945368,1721698235576,-500.0,0.00010958,3]
[332945369,1721698235586,-500.0,0.00010958,11]
[332945370,1721698235596,-500.0,0.00010958,4]
[332945371,1721698235606,-500.0,0.00010958,5]
[332945372,1721698235616,-500.0,0.00010958,6]
[332945373,1721698235626,-500.0,0.00010958,2]
[332945374,1721698235635,-500.0,0.00010958,7]
[332945375,1721698235645,-500.0,0.00010958,8]
[332945376,1721698235665,-500.0,0.00010958,9]
[332945377,1721698235676,-500.0,0.00010958,10]
[332945378,1721698235686,-500.0,0.00010958,11]
[332945379,1721698235696,-171.04098033,0.00010958,2]
[332945380,1721698235706,-500.0,0.00010958,2]
[332945381,1721698235716,-500.0,0.00010958,3]
[332945382,1721698235726,-500.0,0.00010958,2]
[332945383,1721698235736,-500.0,0.00010958,4]
[332945384,1721698235745,-500.0,0.00010958,5]
[332945385,1721698235756,-330.17985528,0.00010958,5]
[332945386,1721698235766,-500.0,0.00010958,6]
[332945387,1721698235776,-500.0,0.00010958,2]
[332945388,1721698235786,-500.0,0.00010958,7]
[332945389,1721698235796,-500.0,0.00010958,8]
[332945390,1721698235806,-500.0,0.00010958,2]
[332945391,1721698235815,-500.0,0.00010958,9]
[332945392,1721698235825,-500.0,0.00010958,10]
[332945393,1721698235835,-500.0,0.00010958,11]
[332945394,1721698235845,-500.0,0.00010958,2]
[332945395,1721698235855,-500.0,0.00010958,2]
[332945396,1721698235864,-500.0,0.00010958,3]
[332945397,1721698235874,-500.0,0.00010958,2]
[332945398,1721698235884,-500.0,0.00010958,4]
[332945399,1721698235894,-500.0,0.00010958,3]
[332945400,1721698235904,-500.0,0.00010958,5]
[332945401,1721698235914,-495.7230448,0.00010958,2]
[332945402,1721698235925,-500.0,0.00010958,4]
[332945403,1721698235935,-527.02933049,0.00010958,6]
[332945404,1721698235944,-500.0,0.00010958,5]
[332945405,1721698235955,-500.0,0.00010958,6]
[332945406,1721698235965,-500.0,0.00010958,7]
[332945407,1721698235975,-500.0,0.00010958,2]
[332945408,1721698235984,-500.0,0.00010958,8]
[332945409,1721698235994,-500.0,0.00010958,3]
[332945410,1721698236004,-500.0,0.00010958,9]
[332945411,1721698236014,-500.0,0.00010958,2]
[332945412,1721698236024,-500.0,0.00010958,4]
[332945413,1721698236425,-500.0,0.00010958,10]
[332945414,1721698236463,-833.98,0.00010958,2]
[332945415,1721698236474,-574.58690966,0.00010958,11]
[332945416,1721698236483,-500.0,0.00010958,5]
[332945417,1721698236493,-500.0,0.00010958,2]
[332945418,1721698236503,-807.87,0.00010958,2]
[332945419,1721698236513,-500.0,0.00010958,6]
[332945420,1721698236523,-500.0,0.00010958,7]
[332945421,1721698236535,-500.0,0.00010958,8]
[332945422,1721698236545,-500.0,0.00010958,9]
[332945423,1721698236555,-500.0,0.00010958,2]
[332945424,1721698236564,-500.0,0.00010958,2]
[332945425,1721698236575,-500.0,0.00010958,10]
[332945426,1721698236584,-500.0,0.00010958,3]
[332945427,1721698236594,-500.0,0.00010958,2]
[332945428,1721698236604,-500.0,0.00010958,4]
[332945429,1721698236615,-500.0,0.00010958,11]
[332945430,1721698236624,-506.21,0.00010958,2]
[332945431,1721698236634,-500.0,0.00010958,3]
[332945432,1721698236644,-534.80657193,0.00010958,5]
[332945433,1721698236653,-500.0,0.00010958,4]
[332945434,1721698236663,-500.0,0.00010958,5]
[332945435,1721698236674,-500.0,0.00010958,6]
[332945436,1721698236685,-390.11848429,0.00010958,7]
[332945437,1721698236695,-500.0,0.00010958,2]
[332945438,1721698236705,-500.0,0.00010958,2]
[332945439,1721698236715,-527.71,0.00010958,2]
[332945440,1721698236725,-527.71,0.00010958,3]
[332945441,1721698236735,-500.0,0.00010958,2]
[332945442,1721698236745,-527.71,0.00010958,4]
[332945443,1721698236755,-252.1224299,0.00010958,2]
[332945444,1721698236764,-527.71,0.00010958,5]
[332945445,1721698236774,-500.0,0.00010958,2]
[332945446,1721698236783,-527.71,0.00010958,6]
[332945447,1721698236793,-500.0,0.00010958,3]
[332945448,1721698236803,-527.71,0.00010958,7]
[332945449,1721698236812,-500.0,0.00010958,4]
[332945450,1721698236822,-527.71,0.00010958,8]
[332945451,1721698236832,-500.0,0.00010958,5]
[332945452,1721698236842,-527.71,0.00010958,9]
[332945453,1721698236851,-527.71,0.00010958,10]
[332945454,1721698236862,-500.0,0.00010958,6]
[332945455,1721698236872,-527.71,0.00010958,11]
[332945456,1721698236881,-500.0,0.00010958,7]
[332945457,1721698236891,-500.0,0.00010958,8]
[332945458,1721698236901,-500.0,0.00010958,9]
[332945459,1721698236911,-500.0,0.00010958,2]
[332945460,1721698236921,-500.0,0.00010958,10]
[332945461,1721698236933,-1956.07,0.00010958,2]
[332945462,1721698236943,-500.0,0.00010958,2]
[332945463,1721698236953,-500.0,0.00010958,11]
[332945464,1721698236963,-500.0,0.00010958,2]
[332945465,1721698236973,-1506.1,0.00010958,2]
[332945466,1721698236983,-500.0,0.00010958,2]
[332945467,1721698236992,-500.0,0.00010958,3]
[332945468,1721698237002,-500.0,0.00010958,2]
[332945469,1721698237012,-500.0,0.00010958,2]
[332945470,1721698237023,-500.0,0.00010958,3]
[332945471,1721698237033,-500.0,0.00010958,4]
[332945472,1721698237043,-500.0,0.00010958,4]
[332945473,1721698237053,-500.0,0.00010958,5]
[332945474,1721698237063,-500.0,0.00010958,5]
[332945475,1721698237073,-500.0,0.00010958,6]
[332945476,1721698237083,-500.0,0.00010958,2]
[332945477,1721698237093,-500.0,0.00010958,7]
[332945478,1721698237103,-500.0,0.00010958,2]
[332945479,1721698237112,-500.0,0.00010958,6]
[332945480,1721698237122,-500.0,0.00010958,3]
[332945481,1721698237132,-500.0,0.00010958,7]
[332945482,1721698237142,-500.0,0.00010958,4]
[332945483,1721698237152,-500.0,0.00010958,2]
[332945484,1721698237161,-194.98608261,0.00010958,8]
[332945485,1721698238113,-305.01391739,0.00010958,8]
[332945486,1721698238123,-500.0,0.00010958,9]
[332945487,1721698238133,-500.0,0.00010958,8]
[332945488,1721698238143,-500.0,0.00010958,10]
[332945489,1721698238153,-500.0,0.00010958,5]
[332945490,1721698238163,-500.0,0.00010958,9]
[332945491,1721698238173,-500.0,0.00010958,6]
[332945492,1721698238189,-500.0,0.00010958,10]
[332945493,1721698238199,-500.0,0.00010958,2]
[332945494,1721698238213,-500.0,0.00010958,7]
[332945495,1721698238224,-500.0,0.00010958,11]
[332945496,1721698238235,-507.85776101,0.00010958,2]
[332945497,1721698238245,-500.0,0.00010958,11]
[332945498,1721698238255,-500.0,0.00010958,8]
[332945499,1721698238264,-506.62976127,0.00010958,2]
[332945500,1721698238275,-500.0,0.00010958,9]